bitfinex/quotes_ETHUSD_20220109
["timestamp","ask_amount","ask_price","bid_price","bid_amount"]
[1641751261147,0.3,3167.2,3166.7,1.49166571]
[1641751261340,0.00284212,3167.1,3166.7,1.49166571]
[1641751261744,0.00227369,3167.0,3166.7,1.49166571]
[1641751262145,0.00170527,3166.9,3166.7,1.49166571]
[1641751262540,0.00113685,3166.8,3166.7,1.49166571]
[1641751262742,1.26535004,3167.4,3166.8,4.3]
[1641751262943,0.07893,3167.5,3166.8,4.3]
[1641751263142,0.00284212,3167.3,3166.8,4.3]
[1641751263544,0.456,3167.7,3166.8,4.3]
[1641751263545,0.00227369,3167.2,3166.8,4.3]
[1641751263943,0.00170527,3167.1,3166.8,4.3]
[1641751264345,0.456,3167.7,3166.8,4.3]
[1641751264346,0.00113684,3167.0,3166.8,4.3]
[1641751264748,0.00454739,3167.6,3166.8,4.37895]
[1641751264995,0.00454739,3167.6,3166.8,4.45788]
[1641751264996,0.46054739,3167.6,3166.8,4.45788]
[1641751265195,0.00397896,3167.5,3166.8,4.45788]
[1641751265596,0.00341054,3167.4,3166.8,4.45788]
[1641751265999,0.00397896,3167.5,3166.8,4.45788]
[1641751266396,0.00341054,3167.4,3166.8,6.0366962]
[1641751266796,0.00397896,3167.5,3166.8,6.0366962]
[1641751266997,0.00397896,3167.5,3166.8,4.45788]
[1641751267302,0.00341054,3167.4,3166.7,2.76827667]
[1641751267498,0.00341054,3167.4,3166.8,29.09203919]
[1641751267699,0.00397896,3167.5,3167.3,1.24093505]
[1641751267898,0.00397896,3167.5,3167.3,1.31986505]
[1641751268198,1.19300276,3168.1,3167.3,1.57854]
[1641751268199,0.00341054,3167.4,3167.3,1.57854]
[1641751268399,0.00341054,3167.4,3167.3,7.67854]
[1641751268648,0.00341054,3167.4,3167.3,1.57854]
[1641751268842,0.00341054,3167.4,3167.3,4.92854]
[1641751269042,0.00341054,3167.4,3167.3,6.24521807]
[1641751271845,0.00341054,3167.4,3167.3,2.89521807]
[1641751272045,0.00341054,3167.4,3167.3,1.31667807]
[1641751273698,0.00341054,3167.4,3167.3,2.10602807]
[1641751273997,0.00341054,3167.4,3167.3,7.95602807]
[1641751274600,1.054e-05,3167.4,3167.3,7.95602807]
[1641751274802,1.054e-05,3167.4,3167.3,16.99352942]
[1641751275103,1.33475327,3168.1,3167.7,0.78905]
[1641751275298,0.07892,3168.3,3167.9,13.55]
[1641751275498,0.07892,3168.3,3168.0,0.0789]
[1641751275899,1.59908605,3168.6,3168.1,1.46051279]
[1641751276159,3.08918669,3169.0,3168.3,13.55]
[1641751276351,3.08918669,3169.0,3168.4,0.07888]
[1641751276549,0.0073895,3168.7,3168.4,0.07888]
[1641751276950,3.08918669,3169.0,3168.4,0.07888]
[1641751276951,0.00682108,3168.6,3168.4,0.07888]
[1641751277151,0.00682108,3168.6,3168.4,2.86104882]
[1641751277353,0.00625266,3168.5,3168.4,1.20443092]
[1641751277754,0.00625266,3168.5,3168.4,14.83333092]
[1641751278151,0.07889,3170.0,3168.5,6.55]
[1641751278352,0.07888,3169.7,3168.5,6.55]
[1641751278553,1.3255415,3169.4,3168.7,0.78895]
[1641751278751,1.3255415,3169.4,3168.8,0.0789]
[1641751278952,1.3255415,3169.4,3168.8,0.08339473]
[1641751279153,1.3255415,3169.4,3168.9,0.00392631]
[1641751279754,1.64488572,3169.6,3169.1,0.07889]
[1641751280196,1.19300276,3169.8,3169.2,0.00222104]
[1641751280402,0.3,3169.8,3169.2,0.00222104]
[1641751280601,1.16581495,3169.7,3169.2,0.00222104]
[1641751280897,1.16581495,3169.7,3168.8,0.00449473]
[1641751281098,1.25384722,3169.2,3168.8,0.00449473]
[1641751281298,0.07888,3169.1,3168.8,0.00449473]
[1641751281496,1.55384722,3169.2,3168.5,0.0062]
[1641751282297,1.05384722,3169.2,3168.9,1.45710194]
[1641751282698,0.07888,3169.5,3169.0,0.00335789]
[1641751282904,0.07888,3169.5,3169.0,2.53633037]
[1641751283100,0.456,3169.9,3169.0,0.00335789]
[1641751283298,0.456,3169.9,3169.1,0.00278946]
[1641751283498,0.0011895,3169.8,3169.0,0.00335789]
[1641751283947,1.14720639,3169.7,3169.0,0.00335789]
[1641751284346,0.0011895,3169.8,3169.0,2.53633037]
[1641751284548,0.0011895,3169.8,3169.1,0.07889]
[1641751284747,0.0011895,3169.8,3169.1,0.00278946]
[1641751284946,0.0011895,3169.8,3169.2,0.00222104]
[1641751285146,0.0011895,3169.8,3169.0,0.8398]
[1641751285147,0.0011895,3169.8,3169.1,0.00278946]
[1641751285553,1.0387734,3169.8,3169.1,0.00278946]
[1641751285947,0.0011895,3169.8,3169.1,0.00278946]
[1641751286148,0.0011895,3169.8,3169.2,0.15776]
[1641751286446,0.0011895,3169.8,3169.3,0.00165262]
[1641751287050,0.0011895,3169.8,3169.3,1.560646]
[1641751287248,0.0011895,3169.8,3169.4,2.46495201]
[1641751287501,0.0011895,3169.8,3169.4,2.4660362]
[1641751287796,0.0011895,3169.8,3169.5,2.3659805]
[1641751288198,0.0011895,3169.8,3169.6,3.15340369]
[1641751288397,0.0011895,3169.8,3169.6,0.78872]
[1641751288598,0.0011895,3169.8,3169.6,3.15157961]
[1641751289200,8.95e-05,3169.8,3169.7,13.55]
[1641751289399,3.0016823,3170.3,3169.8,11.6]
[1641751289400,2.4957718,3170.3,3169.8,11.6]
[1641751289600,2.4957718,3170.3,3170.0,0.78857]
[1641751289601,0.9167388,3170.3,3170.0,0.78857]
[1641751289799,0.0022737,3170.2,3170.0,0.78857]
[1641751290098,0.00170527,3170.1,3170.0,0.78857]
[1641751290304,4.407e-05,3170.3,3170.0,4.61648612]
[1641751290601,0.02885,3170.9,3170.6,0.78843]
[1641751290808,0.02885,3170.9,3170.7,0.15767]
[1641751291002,0.00397897,3170.8,3170.7,0.07884]
[1641751291248,0.00397897,3170.8,3170.7,13.91721737]
[1641751291448,0.00397897,3170.8,3170.7,1.21721737]
[1641751291650,0.00397897,3170.8,3170.7,6.56721737]
[1641751292247,0.00397897,3170.8,3170.7,7.35557377]
[1641751292653,0.00397897,3170.8,3170.7,9.94636724]
[1641751292850,0.00397897,3170.8,3170.7,0.7883564]
[1641751293050,0.00397897,3170.8,3170.4,3.232358]
[1641751293250,0.00397897,3170.8,3170.6,0.78843]
[1641751293555,0.00341054,3170.7,3170.6,7.68843]
[1641751293851,0.00341054,3170.7,3170.6,8.99142139]
[1641751294051,0.00341054,3170.7,3170.6,11.6764164]
[1641751294451,0.00341054,3170.7,3170.6,14.9552464]
[1641751294650,0.00341054,3170.7,3170.6,19.7552464]
[1641751294928,0.00341054,3170.7,3170.6,16.09644585]
[1641751295526,0.00341054,3170.7,3170.6,22.14644585]
[1641751295926,0.0016,3170.8,3170.7,13.55]
[1641751296527,6.11,3171.6,3170.8,11.95]
[1641751296726,6.11,3171.6,3171.2,0.78823]
[1641751297027,0.00454739,3171.5,3171.0,1.7340972]
[1641751297227,0.00454739,3171.5,3170.6,3.2]
[1641751297432,0.53879897,3171.4,3170.6,3.2]
[1641751297628,1.3189423,3171.1,3170.6,3.2]
[1641751297829,0.07883,3171.0,3170.6,3.2]
[1641751298028,0.08053527,3171.0,3170.6,3.2]
[1641751298228,0.00113685,3170.9,3170.6,3.2]
[1641751299948,0.00113685,3170.9,3170.6,3.15]
[1641751301050,0.00113685,3170.9,3170.8,5.16727151]
[1641751301357,0.00113685,3170.9,3170.6,3.15]
[1641751301749,0.00113685,3170.9,3170.6,3.20106842]
[1641751302403,1.34668107,3170.9,3170.6,3.20106842]
[1641751302801,1.34668107,3170.9,3170.6,3.20005]
[1641751303201,0.07883,3170.8,3170.6,3.20005]
[1641751303599,1.07883,3170.8,3170.6,3.20005]
[1641751304105,0.456,3170.7,3170.6,3.20005]
[1641751306348,0.00113685,3170.9,3170.6,3.20005]
[1641751306548,0.00113685,3170.9,3170.7,1.29836451]
[1641751308152,0.00113685,3170.9,3170.8,16.15048475]
[1641751309151,0.00113685,3170.9,3170.8,2.60048475]
[1641751309357,0.00113685,3170.9,3170.8,0.07883]
[1641751311237,0.00113685,3170.9,3170.6,3.20005]
[1641751312238,0.00113685,3170.9,3170.7,1.23428445]
[1641751312641,0.00113685,3170.9,3170.6,3.20005]
[1641751313853,0.00113685,3170.9,3170.6,4.8557523]
[1641751314055,0.00113685,3170.9,3170.7,1.26319466]
[1641751316256,0.00033685,3170.9,3170.6,4.8557523]
[1641751317056,0.00033685,3170.9,3170.6,3.2789]
[1641751317397,0.00033685,3170.9,3170.6,3.20005]
[1641751318401,0.00033685,3170.9,3170.6,3.2789]
[1641751318796,0.00033685,3170.9,3170.6,3.20005]
[1641751321447,0.02916685,3171.0,3170.6,3.20005]
[1641751321646,1.80853505,3171.0,3170.6,3.20005]
[1641751321845,1.80853505,3171.0,3170.6,3.15118685]
[1641751322047,3.10853505,3171.0,3170.6,3.15118685]
[1641751322455,0.07884,3171.0,3170.6,3.15118685]
[1641751322848,1.86152564,3171.1,3170.6,3.15118685]
[1641751323149,0.00170527,3171.0,3170.6,3.15118685]
[1641751323347,1.81323091,3171.1,3170.7,6.35]
[1641751323547,1.81323091,3171.1,3170.6,3.15118685]
[1641751323548,0.456,3171.1,3170.6,3.15118685]
[1641751323749,1.73101247,3171.0,3170.7,0.00170527]
[1641751324347,0.456,3171.1,3170.7,0.00170527]
[1641751324549,1.63889577,3171.1,3170.7,0.00170527]
[1641751325015,0.456,3171.1,3170.7,0.00170527]
[1641751326014,0.406,3171.1,3170.7,0.00170527]
[1641751326913,0.01220717,3170.8,3170.3,0.68474837]
[1641751327112,0.01220717,3170.8,3169.9,1.17945181]
[1641751327113,0.01220873,3170.4,3169.9,1.17945181]
[1641751327312,0.53485,3170.3,3169.9,1.17945181]
[1641751327617,0.53485,3170.3,3169.9,5.181e-05]
[1641751327618,1.68435,3170.3,3169.9,5.181e-05]
[1641751327812,1.68435,3170.3,3169.7,2.55026062]
[1641751327813,1.0955864,3170.0,3169.7,2.55026062]
[1641751328014,0.53485,3169.9,3169.7,0.87234154]
[1641751328215,0.53485,3169.9,3169.8,0.00511581]
[1641751328216,0.83485,3169.9,3169.8,0.00511581]
[1641751328655,1.83485,3169.9,3169.8,0.00511581]
[1641751329449,3.62618447,3169.9,3169.8,0.00511581]
[1641751329649,1.14395232,3169.4,3169.1,0.00909477]
[1641751329853,1.14395232,3169.4,3168.9,0.01023162]
[1641751330253,1.14395232,3169.4,3168.8,0.01080004]
[1641751330450,1.14395232,3169.4,3169.2,0.85415808]
[1641751330650,1.14395232,3169.4,3169.2,0.80415808]
[1641751330949,1.14395232,3169.4,3169.3,0.00795793]
[1641751331352,4.93124704,3169.4,3169.3,0.00795793]
[1641751331552,6.01012704,3169.4,3169.3,0.00795793]
[1641751331953,0.78914,3169.2,3168.9,0.01023162]
[1641751332150,0.53488,3169.1,3168.9,0.01023162]
[1641751332399,0.83488,3169.1,3168.9,0.01023162]
[1641751332599,0.83488,3169.1,3168.6,0.01193689]
[1641751332600,1.83488,3169.1,3168.6,0.01193689]
[1641751332801,1.83488,3169.1,3168.4,0.01307374]
[1641751332999,1.756,3169.1,3168.4,0.01307374]
[1641751333301,1.13350631,3168.9,3168.4,0.01307374]
[1641751333499,0.456,3168.8,3168.7,0.79345723]
[1641751334501,0.456,3168.8,3168.5,0.79345723]
[1641751334901,0.456,3168.8,3168.5,0.80596254]
[1641751335306,0.456,3168.8,3168.5,4.00596254]
[1641751336255,4.8176325,3169.5,3168.6,0.79345723]
[1641751336256,0.456,3169.3,3168.6,0.79345723]
[1641751336454,2.75915491,3169.9,3168.6,3.33491745]
[1641751336455,0.456,3169.7,3168.6,3.33491745]
[1641751336654,0.456,3169.7,3168.7,0.09024847]
[1641751336855,1.57925491,3169.9,3169.0,0.7888051]
[1641751337055,1.57925491,3169.9,3169.1,2.42237377]
[1641751337253,1.57925491,3169.9,3169.4,1.35326641]
[1641751337655,1.57925491,3169.9,3169.5,0.00682108]
[1641751338053,0.456,3170.1,3169.5,0.00682108]
[1641751339052,0.756,3170.1,3169.5,0.00682108]
[1641751339254,0.756,3170.1,3169.6,0.79345723]
[1641751339656,1.15000525,3170.2,3169.6,0.79345723]
[1641751339657,0.07885,3170.4,3169.7,2.54478629]
[1641751339908,1.2002218,3170.7,3169.7,0.00568423]
[1641751340107,2.40769563,3170.8,3169.6,1.11855723]
[1641751340108,1.94673362,3170.0,3169.8,0.00511581]
[1641751340308,3.60791743,3170.6,3169.9,8.7]
[1641751340709,3.60791743,3170.6,3170.2,0.7884762]
[1641751341007,3.60791743,3170.6,3170.5,1.19000274]
[1641751341208,3.60791743,3170.6,3170.3,0.08112369]
[1641751341411,0.00170527,3171.0,3170.5,0.00113684]
[1641751341611,0.08053527,3171.0,3170.4,0.00170527]
[1641751341809,0.00113685,3170.9,3170.0,0.00397896]
[1641751342008,0.00113685,3170.9,3169.8,2.61793206]
[1641751342009,0.00113685,3170.9,3169.9,0.00454738]
[1641751342209,1.18586021,3170.6,3169.9,1.42911725]
[1641751342710,0.07885,3170.5,3170.0,0.00397896]
[1641751342910,0.456,3170.4,3170.0,0.00397896]
[1641751343113,0.07885,3170.3,3169.9,0.00454738]
[1641751343308,0.456,3170.2,3169.9,0.00454738]
[1641751343509,0.07885,3170.1,3169.9,0.00454738]
[1641751343750,0.456,3170.2,3169.9,0.00454738]
[1641751344349,0.07885,3170.3,3169.9,0.00454738]
[1641751344550,0.756,3170.6,3169.9,0.00454738]
[1641751344749,0.756,3170.6,3170.3,1.36807402]
[1641751345150,0.456,3170.6,3170.4,0.00170527]
[1641751349012,0.07885,3170.5,3170.4,0.00170527]
[1641751349213,1.08081841,3170.3,3170.0,0.00397896]
[1641751349613,1.45966841,3170.3,3170.0,0.00397896]
[1641751349813,1.15966841,3170.3,3170.0,0.00397896]
[1641751350812,1.08081841,3170.3,3170.0,0.00397896]
[1641751351018,1.656469,3170.4,3170.0,0.00397896]
[1641751351019,0.07885,3170.4,3170.0,0.00397896]
[1641751353657,0.8676529,3170.4,3170.0,0.00397896]
[1641751353852,0.7888029,3170.4,3170.0,0.00397896]
[1641751354054,1.0888029,3170.4,3170.0,0.00397896]
[1641751354252,1.36227864,3170.3,3170.0,0.00397896]
[1641751356305,1.8776129,3170.4,3170.0,0.00397896]
[1641751357503,3.15363982,3170.4,3170.0,0.00397896]
[1641751358401,4.64248653,3170.4,3170.0,0.00397896]
[1641751358659,1.0,3170.3,3170.0,0.00397896]
[1641751358858,0.78884,3170.2,3170.0,0.00397896]
[1641751359055,0.07885,3170.1,3170.0,0.00397896]
[1641751359257,2.80989096,3170.1,3170.0,0.00397896]
[1641751359560,2.80989096,3170.1,3169.1,1.2728787]
[1641751359561,7.6,3170.0,3169.1,1.2728787]
[1641751359856,1.35302469,3169.2,3169.1,0.07885]
[1641751360058,5.23067694,3169.2,3169.1,0.07885]
[1641751360254,5.23067694,3169.2,3169.1,0.08396581]
[1641751360559,3.52105469,3169.2,3169.1,0.08396581]
[1641751361355,6.24052215,3169.2,3169.1,0.08396581]
[1641751361558,4.83749746,3169.2,3169.1,6.581e-05]
[1641751361755,4.83749746,3169.2,3168.3,1.1940287]
[1641751361954,0.78916,3169.0,3168.3,1.1940287]
[1641751362156,0.78916,3169.0,3168.4,0.00397897]
[1641751362157,3.49588133,3169.0,3168.4,0.00397897]
[1641751362714,0.78916,3169.0,3168.4,0.00397897]
[1641751362913,2.03729203,3169.0,3168.4,0.00397897]
[1641751363213,2.33729203,3169.0,3168.4,0.00397897]
[1641751363414,0.07888,3168.9,3168.4,0.00397897]
[1641751363615,1.07888,3169.1,3168.5,0.58727123]
[1641751363815,1.3,3169.1,3168.5,0.58727123]
[1641751364015,0.3,3169.1,3168.6,0.00284212]
[1641751364218,0.53489,3169.2,3168.6,0.00284212]
[1641751364219,0.83489,3169.2,3168.6,0.00284212]
[1641751364617,0.53489,3169.2,3169.0,1.30709647]
[1641751364816,4.989263,3169.7,3169.0,1.30709647]
[1641751364817,0.07888,3169.4,3169.0,1.30709647]
[1641751365017,5.33223072,3170.0,3169.0,1.30709647]
[1641751365018,0.07888,3169.7,3169.0,1.30709647]
[1641751365216,0.00113684,3169.3,3169.0,1.30709647]
[1641751365416,0.00284211,3169.6,3169.0,1.30709647]
[1641751365616,0.07888,3169.9,3169.0,1.30709647]
[1641751365617,0.08342739,3169.9,3169.0,1.30709647]
[1641751365817,0.00227369,3169.5,3169.1,0.58727123]
[1641751366017,0.00397896,3169.8,3169.5,1.28782903]
[1641751366256,1.44628501,3170.1,3169.1,0.58727123]
[1641751366656,0.00511581,3170.0,3169.1,0.58727123]
[1641751366858,0.07886,3169.9,3169.6,0.58727123]
[1641751367052,0.00454739,3169.9,3169.6,0.58727123]
[1641751367252,0.00397896,3169.8,3169.6,0.58727123]
[1641751367451,0.00397896,3169.8,3169.3,1.19043813]
[1641751367653,0.00341054,3169.7,3169.3,1.19043813]
[1641751368052,0.00284211,3169.6,3169.3,1.19043813]
[1641751368453,0.00227369,3169.5,3169.4,3.79899784]
[1641751368654,0.00227369,3169.5,3169.4,0.39899784]
[1641751372611,0.08113369,3169.5,3169.4,0.39899784]
[1641751373210,0.08113369,3169.5,3169.1,3.2]
[1641751373211,1.15979237,3169.4,3169.2,0.39899784]
[1641751373411,0.07888,3169.3,3169.2,0.39899784]
[1641751373664,0.08001684,3169.3,3169.2,0.39899784]
[1641751374159,0.08001684,3169.3,3169.1,3.2]
[1641751375061,8.23911,3169.2,3169.1,3.2]
[1641751375262,30.48820677,3169.2,3169.1,3.2]
[1641751375461,24.33820677,3169.2,3169.1,3.2]
[1641751375660,21.40399,3169.2,3169.1,3.2]
[1641751376262,23.78386187,3169.2,3169.1,3.2]
[1641751376460,5.30386187,3169.2,3169.1,3.2]
[1641751377265,5.00386187,3169.2,3169.1,3.2]
[1641751377508,5.22498187,3169.2,3169.1,3.2]
[1641751377704,4.92498187,3169.2,3169.1,3.2]
[1641751378104,2.54511,3169.2,3169.1,3.2]
[1641751378506,1.54511,3169.2,3169.1,3.2]
[1641751378708,2.84511,3169.2,3169.1,3.2]
[1641751378904,1.84511,3169.2,3169.1,3.2]
[1641751379104,2.84511,3169.2,3169.1,3.2]
[1641751381555,2.92399,3169.2,3169.1,3.2]
[1641751382154,5.35476794,3169.2,3169.1,0.33348007]
[1641751382756,5.27588794,3169.2,3169.1,0.33348007]
[1641751383156,2.84511,3169.2,3169.1,0.33348007]
[1641751385107,2.54511,3169.2,3169.1,0.33348007]
[1641751385503,1.54511,3169.2,3169.1,0.33348007]
[1641751385706,2.54511,3169.2,3169.1,0.33348007]
[1641751386006,1.54511,3169.2,3169.1,0.33348007]
[1641751386203,2.54511,3169.2,3169.1,0.33348007]
[1641751386603,1.54511,3169.2,3169.1,0.33348007]
[1641751386803,2.84511,3169.2,3169.1,0.33348007]
[1641751388106,5.20304518,3169.2,3169.1,0.33348007]
[1641751389561,5.28192518,3169.2,3169.1,0.33348007]
[1641751390967,5.28192518,3169.2,3169.1,8.007e-05]
[1641751390968,34.87572518,3169.2,3169.1,8.007e-05]
[1641751391167,1.5787967,3168.8,3168.5,0.00341054]
[1641751391365,0.53488,3168.7,3168.5,0.00341054]
[1641751391568,21.11890691,3168.6,3168.1,0.00568424]
[1641751391765,0.53489,3168.5,3168.1,0.00568424]
[1641751391965,18.48,3168.4,3168.1,0.00568424]
[1641751392163,18.48,3168.4,3167.6,2.87194778]
[1641751392164,1.53489,3168.3,3167.7,0.00795793]
[1641751392408,0.78951,3168.0,3167.7,0.00795793]
[1641751392607,5.38077261,3167.8,3167.7,0.00795793]
[1641751392808,2.68117261,3167.8,3167.7,0.00795793]
[1641751393010,3.98117261,3167.8,3167.7,0.00795793]
[1641751393208,4.28117261,3167.8,3167.7,0.00795793]
[1641751393409,5.43229298,3167.8,3167.7,0.00795793]
[1641751393607,22.43152037,3167.8,3167.3,0.01023162]
[1641751393807,0.7895557,3167.5,3167.3,0.01023162]
[1641751394007,1.2455557,3167.5,3167.3,0.01023162]
[1641751394207,0.456,3167.5,3167.3,0.01023162]
[1641751394406,1.756,3167.5,3167.3,0.01023162]
[1641751394609,0.83492,3167.5,3167.3,0.01023162]
[1641751394811,0.83492,3167.5,3166.9,0.01250532]
[1641751395010,1.08961,3167.2,3166.9,0.01250532]
[1641751395211,1.38961,3167.2,3166.9,0.01250532]
[1641751396370,3.41343325,3167.2,3166.9,0.01250532]
[1641751396570,1.756,3167.1,3166.9,0.01250532]
[1641751396767,20.236,3167.1,3166.7,0.01364217]
[1641751396967,0.78976,3166.9,3166.7,0.01364217]
[1641751397166,1.38976,3166.9,3166.7,0.01364217]
[1641751397369,0.6,3166.9,3166.7,0.01364217]
[1641751397567,1.456,3167.1,3166.9,2.6]
[1641751397967,0.456,3167.1,3167.0,0.0119369]
[1641751399668,1.456,3167.1,3167.0,0.0119369]
[1641751399914,1.74565,3167.1,3167.0,0.0119369]
[1641751400113,0.78965,3167.1,3167.0,0.0119369]
[1641751401311,3.85461341,3167.4,3167.0,0.0119369]
[1641751401312,2.5792252,3167.3,3167.0,0.0119369]
[1641751401512,3.0352252,3167.3,3167.0,0.0119369]
[1641751403515,21.5941452,3167.3,3167.0,0.0119369]
[1641751404158,2.64194043,3167.2,3167.0,0.0119369]
[1641751404363,22.91492,3167.1,3167.0,0.0119369]
[1641751404555,23.91492,3167.1,3167.0,0.0119369]
[1641751405156,6.25,3167.0,3166.2,0.456]
[1641751405357,0.78997,3166.7,3166.2,0.456]
[1641751405559,18.48,3166.5,3166.3,0.00397896]
[1641751405757,0.456,3166.4,3166.3,0.00397896]
[1641751406064,1.456,3166.4,3166.3,0.00397896]
[1641751406257,2.48918668,3166.4,3166.3,0.00397896]
[1641751406957,1.456,3166.4,3166.3,3.20397896]
[1641751407606,0.456,3166.4,3166.3,3.20397896]
[1641751407807,0.456,3166.4,3166.3,0.00397896]
[1641751408212,1.00325312,3166.9,3166.3,0.00397896]
[1641751408213,0.00325312,3166.9,3166.3,0.00397896]
[1641751408907,0.00325312,3166.9,3166.4,1.42409336]
[1641751409307,0.00325312,3166.9,3166.5,0.00284211]
[1641751410309,0.456,3167.1,3166.5,0.00284211]
[1641751410909,0.456,3167.1,3166.9,1.47894954]
[1641751412153,0.05369256,3167.4,3166.9,1.47894954]
[1641751412556,0.00170528,3167.3,3166.9,1.47894954]
[1641751412955,0.00113685,3167.2,3166.9,1.47894954]
[1641751413156,0.00113685,3167.2,3167.0,2.47114374]
[1641751413356,0.0022737,3167.4,3167.1,0.01222741]
[1641751413758,1.58025316,3167.9,3167.1,0.80150871]
[1641751413759,0.00344739,3167.8,3167.1,0.80150871]
[1641751413957,0.00344739,3167.8,3167.2,2.74914608]
[1641751414154,6.12874,3168.8,3167.6,14.73307383]
[1641751414155,0.00287897,3167.7,3167.6,14.73307383]
[1641751414656,7.897e-05,3167.7,3167.6,14.81199383]
[1641751414903,7.897e-05,3167.7,3167.6,14.08492]
[1641751415306,7.897e-05,3167.7,3167.6,14.87408]
[1641751417208,7.897e-05,3167.7,3167.6,15.7348013]
[1641751417511,0.00325312,3168.2,3167.9,0.78906]
[1641751417709,5.312e-05,3168.2,3167.9,0.78906]
[1641751417907,7.369e-05,3168.1,3168.0,0.67309997]
[1641751418107,7.369e-05,3168.1,3168.0,14.22309997]
[1641751419158,7.369e-05,3168.1,3168.0,15.80109997]
[1641751420254,7.369e-05,3168.1,3168.0,16.66182127]
[1641751421657,7.369e-05,3168.1,3168.0,15.80109997]
[1641751423011,7.369e-05,3168.1,3168.0,15.72219997]
[1641751423213,7.369e-05,3168.1,3168.0,15.80109997]
[1641751427657,7.369e-05,3168.1,3168.0,15.72219997]
[1641751428760,7.369e-05,3168.1,3168.0,16.53345821]
[1641751429658,7.369e-05,3168.1,3168.0,15.72219997]
[1641751433307,7.369e-05,3168.1,3168.0,15.80109997]
[1641751433757,7.369e-05,3168.1,3168.0,16.61220476]
[1641751433959,0.0789,3169.5,3169.1,1.10372223]
[1641751434357,0.08685793,3169.5,3169.1,1.10372223]
[1641751435658,0.00795793,3169.5,3169.1,1.10372223]
[1641751437914,0.00795793,3169.5,3168.6,3.8189]
[1641751438516,0.00795793,3169.5,3169.1,3.2]
[1641751439115,0.08683793,3169.5,3169.1,3.2]
[1641751441561,0.00795793,3169.5,3169.1,3.2]
[1641751442366,0.00795793,3169.5,3169.1,5.67041948]
[1641751442562,0.00795793,3169.5,3169.1,6.45922948]
[1641751443165,0.00795793,3169.5,3169.1,6.53810948]
[1641751443364,0.00795793,3169.5,3169.1,7.32691118]
[1641751444463,0.00795793,3169.5,3169.1,7.24803118]
[1641751445309,0.00795793,3169.5,3169.3,0.78876]
[1641751446715,0.00795793,3169.5,3169.3,1.5775156]
[1641751446915,5.793e-05,3169.5,3169.4,15.9914952]
[1641751447115,5.793e-05,3169.5,3169.4,13.55]
[1641751447814,1.57893075,3170.6,3170.0,0.78852]
[1641751448013,1.57893075,3170.6,3170.1,1.28693392]
[1641751448214,0.00568424,3170.5,3170.1,1.28693392]
[1641751448416,4.6,3170.3,3169.3,0.01298688]
[1641751448677,0.01282122,3169.9,3169.3,0.01298688]
[1641751448861,0.07886,3169.8,3169.3,0.01298688]
[1641751449061,0.08056527,3169.8,3169.3,0.01298688]
[1641751449261,0.00113685,3169.7,3169.3,0.01298688]
[1641751449462,0.00113685,3169.7,3169.4,1.40378553]
[1641751449662,0.07886,3170.1,3169.4,1.40378553]
[1641751450066,0.00284212,3170.0,3169.4,1.40378553]
[1641751450262,0.07886,3169.9,3169.4,1.40378553]
[1641751450463,0.0811337,3169.9,3169.4,1.40378553]
[1641751450664,0.00170527,3169.8,3169.4,1.40378553]
[1641751451166,0.00113685,3169.7,3169.1,3.2]
[1641751451365,0.07886,3169.6,3169.1,3.2]
[1641751451566,0.07886,3169.6,3169.2,0.00170527]
[1641751451767,0.78906,3169.4,3169.2,0.00170527]
[1641751451965,0.07888,3169.3,3169.2,0.00170527]
[1641751453206,0.3,3169.4,3169.2,0.00170527]
[1641751453405,1.86789,3169.6,3169.2,0.00170527]
[1641751453406,2.46789,3169.6,3169.2,0.00170527]
[1641751454009,1.67888,3169.6,3169.2,0.00170527]
[1641751454408,0.78904,3169.5,3169.2,0.00170527]
[1641751454608,2.68689309,3169.5,3169.2,0.00170527]
[1641751456019,0.07888,3169.7,3169.2,0.00170527]
[1641751456667,0.37888,3169.7,3169.2,0.00170527]
[1641751456963,3.47577202,3169.6,3169.2,0.00170527]
[1641751457162,1.07886,3169.5,3169.2,0.00170527]
[1641751457560,1.37886,3169.5,3169.2,0.00170527]
[1641751457765,4.06561312,3169.5,3169.2,0.00170527]
[1641751457961,2.98675312,3169.5,3169.2,0.00170527]
[1641751458161,2.68675312,3169.5,3169.2,0.00170527]
[1641751458365,2.68675312,3169.4,3169.2,0.00170527]
[1641751458663,2.66959704,3169.3,3169.2,0.00170527]
[1641751458862,22.4244276,3169.3,3169.2,0.00170527]
[1641751459063,4.2444276,3169.3,3169.2,0.00170527]
[1641751459261,2.056,3169.3,3169.2,0.00170527]
[1641751459663,2.8451,3169.3,3169.2,0.00170527]
[1641751459905,5.53185312,3169.3,3169.2,0.00170527]
[1641751460504,8.17614403,3169.3,3169.2,0.00170527]
[1641751461707,5.53185312,3169.3,3169.2,0.00170527]
[1641751462507,5.61073312,3169.3,3169.2,0.00170527]
[1641751463308,8.22432161,3169.3,3169.2,0.00170527]
[1641751463510,29.97083465,3169.3,3169.2,0.00170527]
[1641751465457,11.49083465,3169.3,3169.2,0.00170527]
[1641751465655,8.85347508,3169.3,3169.2,0.00170527]
[1641751466458,24.09073312,3169.3,3169.2,0.00170527]
[1641751466657,26.72596806,3169.3,3169.2,0.00170527]
[1641751467257,27.48766806,3169.3,3169.2,0.00170527]
[1641751467715,4.4,3169.1,3167.8,2.35481138]
[1641751467914,0.7894,3168.4,3167.8,0.75627209]
[1641751468218,1.16006631,3167.9,3167.8,0.75627209]
[1641751468415,1.46006631,3167.9,3167.8,0.75627209]
[1641751468614,1.46006631,3167.9,3167.8,0.76423002]
[1641751469316,1.76006631,3167.9,3167.8,0.00795793]
[1641751469515,1.83896631,3167.9,3167.8,0.00795793]
[1641751469717,1.46006631,3167.9,3167.4,0.01023162]
[1641751469915,2.24950631,3167.9,3167.4,0.01023162]
[1641751470719,1.46006631,3167.9,3167.4,0.01023162]
[1641751472059,1.46006631,3167.9,3166.8,0.01364216]
[1641751472459,1.16006631,3167.9,3167.0,1.48180679]
[1641751472659,1.46006631,3167.9,3167.0,1.48180679]
[1641751472862,1.46006631,3167.9,3167.1,0.01193689]
[1641751473265,1.16006631,3167.9,3167.1,0.01193689]
[1641751473462,1.86829,3168.3,3167.1,0.01193689]
[1641751473662,1.38937,3168.3,3167.1,0.01193689]
[1641751474262,1.38937,3168.3,3167.1,2.44721226]
[1641751474462,1.10555115,3168.1,3167.1,0.01193689]
[1641751474662,1.40555115,3168.1,3167.2,0.01136847]
[1641751474907,1.40555115,3168.1,3167.1,0.01193689]
[1641751475510,19.88555115,3168.1,3167.1,0.01193689]
[1641751476309,0.78947,3167.9,3167.1,0.01193689]